[Event "FIDE WCCC Open-08 2024"]
[Site "Montesilvano"]
[Date "2024.11.18"]
[Round "3.9"]
[White "Meiyazhagan, Kaviinayan"]
[Black "Nurshin, Nurali"]
[Result "0-1"]
[ECO "B22"]
[WhiteElo "1707"]
[BlackElo "1612"]
[PlyCount "174"]
[EventDate "2024.11.18"]
[EventType "swiss"]
[EventCountry "ITA"]
[TimeControl "5400+30"]

1. e4 {[%emt 0:00:11]} c5 {[%emt 0:00:15]} 2. d4 {[%emt 0:00:10]} cxd4 {[%emt 0:02:42]} 3. c3 {[%emt 0:00:13]} d5 {[%emt 0:00:53]} 4. exd5 {[%emt 0:00:13]} Qxd5 {[%emt 0:00:15]} 5. cxd4 {[%emt 0:00:44]} Nc6 {[%emt 0:00:12]} 6. Nf3 {[%emt 0:00:10]} Bg4 {[%emt 0:00:44]} 7. Be2 {[%emt 0:00:07]} Nf6 {[%emt 0:00:21]} 8. Nc3 {[%emt 0:01:21]} Qa5 {[%emt 0:00:38]} 9. O-O {[%emt 0:00:43]} e6 {[%emt 0:00:27]} 10. Bf4 {[%emt 0:10:58]} Be7 {[%emt 0:02:19]} 11. Qb3 {[%emt 0:00:18]} Qb4 {[%emt 0:17:53]} 12. Qxb4 {[%emt 0:13:43]} Nxb4 {[%emt 0:00:05]} 13. Rac1 {[%emt 0:00:43]} a6 {[%emt 0:00:33]} 14. Rfd1 {[%emt 0:00:57]} Nbd5 {[%emt 0:01:25]} 15. Bg5 {[%emt 0:03:02]} Nxc3 {[%emt 0:04:43]} 16. bxc3 {[%emt 0:00:32]} Nd5 {[%emt 0:01:12]} 17. Bxe7 {[%emt 0:00:18]} Kxe7 {[%emt 0:00:06]} 18. h3 {[%emt 0:02:38]} Nf4 {[%emt 0:01:39]} 19. Kf1 {[%emt 0:02:00]} Bh5 {[%emt 0:01:34]} 20. g4 {[%emt 0:02:19]} Bg6 {[%emt 0:00:33]} 21. h4 {[%emt 0:03:38]} Be4 {[%emt 0:02:14]} 22. Ne5 {[%emt 0:01:36]} Bg2+ {[%emt 0:00:44]} 23. Ke1 {[%emt 0:00:10]} f6 {[%emt 0:01:58]} 24. Nd3 {[%emt 0:04:13]} Nxd3+ {[%emt 0:05:24]} 25. Rxd3 {[%emt 0:00:54]} Bc6 {[%emt 0:01:43]} 26. c4 {[%emt 0:02:11]} Rhd8 {[%emt 0:00:32]} 27. Rcd1 {[%emt 0:11:42]} b5 {[%emt 0:00:37]} 28. Rb3 {[%emt 0:09:41]} bxc4 {[%emt 0:02:21]} 29. Bxc4 {[%emt 0:00:24]} Ra7 {[%emt 0:00:44]} 30. Rb6 {[%emt 0:29:41]} Bd5 {[%emt 0:50:44]} 31. Bxd5 {[%emt 0:00:00]} Rxd5 {[%emt 0:00:00]} 32. Rd2 {[%emt 0:00:00]} a5 {[%emt 0:00:00]} 33. Re2 {[%emt 0:00:00]} Rxd4 {[%emt 0:00:00]} 34. Rbxe6+ {[%emt 0:00:00]} Kf7 {[%emt 0:00:00]} 35. R6e4 {[%emt 0:00:00]} Rad7 {[%emt 0:00:00]} 36. f3 {[%emt 0:00:00]} Rxe4 {[%emt 0:00:00]} 37. Rxe4 {[%emt 0:00:00]} Rd3 {[%emt 0:00:00]} 38. Kf2 {[%emt 0:04:00]} Ra3 {[%emt 0:00:00]} 39. Re2 {[%emt 0:00:00]} f5 {[%emt 0:00:00]} 40. Kg2 {[%emt 0:00:00]} Kf6 {[%emt 0:00:00]} 41. Kf2 {[%emt 0:00:00]} fxg4 {[%emt 0:00:00]} 42. fxg4 {[%emt 0:00:00]} h5 {[%emt 0:00:00]} 43. gxh5 {[%emt 0:00:00]} Rh3 {[%emt 0:00:00]} 44. Ke1 {[%emt 0:00:00]} Rxh4 {[%emt 0:00:00]} 45. Rf2+ {[%emt 0:00:00]} Kg5 {[%emt 0:00:00]} 46. Rg2+ {[%emt 0:00:00]} Kh6 {[%emt 0:00:00]} 47. Rg6+ {[%emt 0:00:00]} Kh7 {[%emt 0:00:00]} 48. Rg5 {[%emt 0:02:02]} Rh1+ {[%emt 0:00:00]} 49. Kd2 {[%emt 0:00:05]} Rh2+ {[%emt 0:00:00]} 50. Kc3 {[%emt 0:00:09]} Rxa2 {[%emt 0:00:00]} 51. Kb3 {[%emt 0:00:07]} Ra1 {[%emt 0:00:00]} 52. Kb2 {[%emt 0:00:08]} Rh1 {[%emt 0:00:00]} 53. Rxa5 {[%emt 0:00:13]} Kh6 {[%emt 0:00:00]} 54. Kc2 {[%emt 0:00:14]} Rxh5 {[%emt 0:00:00]} 55. Ra6+ {[%emt 0:00:04]} g6 {[%emt 0:00:00]} 56. Kd3 {[%emt 0:00:17]} Re5 {[%emt 0:00:00]} 57. Kd4 {[%emt 0:00:39]} Re8 {[%emt 0:00:00]} 58. Ra1 {[%emt 0:00:40]} g5 {[%emt 0:00:00]} 59. Rh1+ {[%emt 0:00:04]} Kg6 {[%emt 0:00:00]} 60. Rg1 {[%emt 0:00:12]} Re7 {[%emt 0:00:00]} 61. Kd5 {[%emt 0:06:36]} Re2 {[%emt 0:00:00]} 62. Kd4 {[%emt 0:00:00]} Kf5 {[%emt 0:00:00]} 63. Rf1+ {[%emt 0:00:00]} Kg4 {[%emt 0:00:00]} 64. Rg1+ {[%emt 0:00:00]} Kf4 {[%emt 0:00:00]} 65. Rf1+ {[%emt 0:00:00]} Kg3 {[%emt 0:00:00]} 66. Rg1+ {[%emt 0:00:00]} Rg2 {[%emt 0:00:00]} 67. Rf1 {[%emt 0:00:00]} Rf2 {[%emt 0:18:30]} 68. Ra1 {[%emt 0:01:46]} Kf4 {[%emt 0:00:00]} 69. Kd3 {[%emt 0:01:23]} g4 {[%emt 0:00:00]} 70. Ra8 {[%emt 0:00:17]} Kf3 {[%emt 0:00:00]} 71. Rf8+ {[%emt 0:00:17]} Kg2 {[%emt 0:00:00]} 72. Rg8 {[%emt 0:00:09]} g3 {[%emt 0:00:00]} 73. Ke3 {[%emt 0:00:07]} Rf7 {[%emt 0:00:00]} 74. Ke2 {[%emt 0:00:31]} Re7+ {[%emt 0:00:00]} 75. Kd2 {[%emt 0:02:30]} Kh2 {[%emt 0:00:00]} 76. Rh8+ {[%emt 0:00:00]} Kg1 {[%emt 0:00:00]} 77. Rg8 {[%emt 0:00:00]} g2 {[%emt 0:00:00]} 78. Rh8 {[%emt 0:00:00]} Re5 {[%emt 0:00:00]} 79. Rh7 {[%emt 0:01:28]} Kf2 {[%emt 0:00:00]} 80. Rf7+ {[%emt 0:00:05]} Kg3 {[%emt 0:00:00]} 81. Rg7+ {[%emt 0:00:16]} Kf3 {[%emt 0:00:00]} 82. Kd3 {[%emt 0:00:30]} Rd5+ {[%emt 0:00:00]} 83. Kc2 {[%emt 0:00:35]} Rh5 {[%emt 0:00:00]} 84. Kd3 {[%emt 0:00:24]} Rh4 {[%emt 0:00:00]} 85. Rf7+ {[%emt 0:01:05]} Kg3 {[%emt 0:00:00]} 86. Rg7+ {[%emt 0:00:08]} Rg4 {[%emt 0:09:30]} 87. Rf7 {[%emt 0:00:14]} g1=Q {[%emt 0:00:00]} 0-1

[Event "FIDE WCCC Open-08 2024"]
[Site "Montesilvano"]
[Date "2024.11.18"]
[Round "3.10"]
[White "Bausys, Benas"]
[Black "Mohamed Fouad, Yahia"]
[Result "1-0"]
[ECO "B12"]
[WhiteElo "1564"]
[BlackElo "1705"]
[PlyCount "69"]
[EventDate "2024.11.18"]
[EventType "swiss"]
[EventCountry "ITA"]
[TimeControl "5400+30"]

1. e4 {[%emt 0:00:03]} c6 {[%emt 0:00:20]} 2. d4 {[%emt 0:00:19]} d5 {[%emt 0:00:09]} 3. e5 {[%emt 0:00:06]} c5 {[%emt 1:31:31]} 4. dxc5 {[%emt 0:00:07]} Nc6 {[%emt 0:00:00]} 5. Nf3 {[%emt 0:00:07]} Bg4 {[%emt 0:00:00]} 6. a3 {[%emt 0:00:49]} e6 {[%emt 0:00:00]} 7. b4 {[%emt 0:01:13]} Qc7 {[%emt 0:00:00]} 8. Bb2 {[%emt 0:00:30]} Nge7 {[%emt 0:00:00]} 9. h3 {[%emt 0:01:02]} Bxf3 {[%emt 0:00:00]} 10. Qxf3 {[%emt 0:00:45]} Ng6 {[%emt 0:00:00]} 11. Qg3 {[%emt 0:01:30]} Be7 {[%emt 0:00:00]} 12. Nd2 {[%emt 0:03:46]} Bh4 {[%emt 0:00:00]} 13. Qe3 {[%emt 0:03:42]} O-O {[%emt 0:00:00]} 14. g3 {[%emt 0:03:40]} Be7 {[%emt 0:00:00]} 15. f4 {[%emt 0:01:12]} a5 {[%emt 0:00:00]} 16. c3 {[%emt 0:02:11]} axb4 {[%emt 0:00:00]} 17. cxb4 {[%emt 0:01:47]} Ra7 {[%emt 0:00:00]} 18. Rc1 {[%emt 0:03:26]} Qb8 {[%emt 0:00:00]} 19. Nf3 {[%emt 0:01:48]} Rd8 {[%emt 0:00:00]} 20. Nd4 {[%emt 0:01:33]} Nxd4 {[%emt 0:00:00]} 21. Bxd4 {[%emt 0:00:56]} Ra8 {[%emt 0:00:00]} 22. Be2 {[%emt 0:00:58]} Bf8 {[%emt 0:00:00]} 23. O-O {[%emt 0:01:25]} Ne7 {[%emt 0:00:00]} 24. g4 {[%emt 0:03:26]} h5 {[%emt 0:00:00]} 25. b5 {[%emt 0:00:47]} Rc8 {[%emt 0:00:00]} 26. Rc3 {[%emt 0:01:55]} hxg4 {[%emt 0:00:00]} 27. hxg4 {[%emt 0:00:56]} Ng6 {[%emt 0:00:00]} 28. f5 {[%emt 0:02:58]} Ne7 {[%emt 0:00:00]} 29. Qh3 {[%emt 0:01:43]} Ra4 {[%emt 0:00:00]} 30. fxe6 {[%emt 0:03:25]} fxe6 {[%emt 0:00:00]} 31. Qh5 {[%emt 0:01:12]} g6 {[%emt 0:00:00]} 32. Qh4 {[%emt 0:00:25]} Rxd4 {[%emt 0:00:00]} 33. Rh3 {[%emt 0:00:12]} Rxg4+ {[%emt 0:00:00]} 34. Bxg4 {[%emt 0:00:13]} Qxe5 {[%emt 0:00:00]} 35. Qh7# {[%emt 0:57:53]} 1-0

[Event "FIDE WCCC Open-08 2024"]
[Site "Montesilvano"]
[Date "2024.11.18"]
[Round "3.11"]
[White "Sahin, Bora"]
[Black "Tuguldur, Baatarchuluun"]
[Result "1-0"]
[ECO "C10"]
[WhiteElo "1703"]
[BlackElo "1590"]
[PlyCount "59"]
[EventDate "2024.11.18"]
[EventType "swiss"]
[EventCountry "ITA"]
[TimeControl "5400+30"]

1. e4 {[%emt 0:00:03]} e6 {[%emt 0:00:07]} 2. d4 {[%emt 0:00:07]} d5 {[%emt 0:00:05]} 3. Nd2 {[%emt 0:00:04]} dxe4 {[%emt 0:00:07]} 4. Nxe4 {[%emt 0:00:04]} Nd7 {[%emt 0:00:09]} 5. Nf3 {[%emt 0:00:06]} Ngf6 {[%emt 0:00:05]} 6. Nxf6+ {[%emt 0:00:10]} Nxf6 {[%emt 0:00:32]} 7. Bd3 {[%emt 0:00:11]} c5 {[%emt 0:00:12]} 8. O-O {[%emt 0:01:59]} a6 {[%emt 0:00:35]} 9. Bf4 {[%emt 0:01:07]} Bd7 {[%emt 0:00:37]} 10. Re1 {[%emt 0:02:02]} Bc6 {[%emt 0:00:07]} 11. c3 {[%emt 0:02:50]} h6 {[%emt 0:02:05]} 12. Ne5 {[%emt 0:04:09]} cxd4 {[%emt 0:00:36]} 13. Qc2 {[%emt 0:16:02]} Nd5 {[%emt 0:01:53]} 14. Bg6 {[%emt 0:09:10]} d3 {[%emt 0:04:37]} 15. Bxf7+ {[%emt 0:02:15]} Ke7 {[%emt 0:00:14]} 16. Qd2 {[%emt 0:01:38]} Be8 {[%emt 0:03:09]} 17. Bxe6 {[%emt 0:01:12]} Nxf4 {[%emt 0:02:12]} 18. Qxf4 {[%emt 0:04:19]} Qd6 {[%emt 0:03:59]} 19. Rad1 {[%emt 0:01:51]} g5 {[%emt 0:02:37]} 20. Qe4 {[%emt 0:01:10]} d2 {[%emt 0:06:23]} 21. Re2 {[%emt 0:00:50]} Bh5 {[%emt 0:01:21]} 22. g4 {[%emt 0:01:05]} Be8 {[%emt 0:01:32]} 23. Qxb7+ {[%emt 0:00:25]} Kf6 {[%emt 0:00:20]} 24. Qxa8 {[%emt 0:01:21]} Qxe6 {[%emt 0:00:29]} 25. Qf3+ {[%emt 0:00:45]} Kg7 {[%emt 0:00:22]} 26. Rdxd2 {[%emt 0:01:05]} Qxa2 {[%emt 0:01:41]} 27. c4 {[%emt 0:01:39]} h5 {[%emt 0:00:35]} 28. Rd7+ {[%emt 0:00:36]} Kg8 {[%emt 0:02:59]} 29. Qd5+ {[%emt 0:00:11]} Bf7 {[%emt 0:03:55]} 30. Qxf7# {[%emt 0:00:08]} 1-0

[Event "FIDE WCCC Open-08 2024"]
[Site "Montesilvano"]
[Date "2024.11.18"]
[Round "3.12"]
[White "Morozov, Arkhip"]
[Black "Kavish Palaniappan K"]
[Result "1-0"]
[ECO "A18"]
[WhiteElo "1687"]
[BlackElo "1589"]
[PlyCount "81"]
[EventDate "2024.11.18"]
[EventType "swiss"]
[EventCountry "ITA"]
[TimeControl "5400+30"]

1. c4 {[%emt 0:00:03]} Nf6 {[%emt 0:00:24]} 2. Nc3 {[%emt 0:00:29]} e6 {[%emt 0:00:10]} 3. e4 {[%emt 0:00:35]} e5 {[%emt 0:06:19]} 4. g3 {[%emt 0:01:11]} Nc6 {[%emt 0:00:27]} 5. Bg2 {[%emt 0:00:23]} Bc5 {[%emt 0:00:42]} 6. h3 {[%emt 0:00:33]} d6 {[%emt 0:00:51]} 7. Nge2 {[%emt 0:02:33]} Be6 {[%emt 0:00:59]} 8. d3 {[%emt 0:00:56]} O-O {[%emt 0:03:11]} 9. O-O {[%emt 0:01:03]} Nd7 {[%emt 0:01:37]} 10. Kh2 {[%emt 0:01:18]} f5 {[%emt 0:06:01]} 11. f4 {[%emt 0:06:58]} Qe8 {[%emt 0:05:22]} 12. exf5 {[%emt 0:01:32]} Bxf5 {[%emt 0:05:23]} 13. Nd5 {[%emt 0:00:46]} Qd8 {[%emt 0:01:42]} 14. g4 {[%emt 0:10:28]} Be6 {[%emt 0:00:41]} 15. f5 {[%emt 0:03:14]} Bxd5 {[%emt 0:00:33]} 16. Bxd5+ {[%emt 0:00:12]} Kh8 {[%emt 0:00:04]} 17. g5 {[%emt 0:01:18]} Nd4 {[%emt 0:02:20]} 18. Nxd4 {[%emt 0:01:07]} exd4 {[%emt 0:04:14]} 19. Be4 {[%emt 0:06:05]} Ne5 {[%emt 0:03:54]} 20. Qh5 {[%emt 0:01:08]} g6 {[%emt 0:10:04]} 21. fxg6 {[%emt 0:02:29]} Qe7 {[%emt 0:00:58]} 22. Bf4 {[%emt 0:01:49]} Rae8 {[%emt 0:03:07]} 23. Bxe5+ {[%emt 0:02:50]} Qxe5+ {[%emt 0:00:51]} 24. Kg2 {[%emt 0:00:19]} Qg7 {[%emt 0:01:21]} 25. Rf6 {[%emt 0:01:02]} d5 {[%emt 0:01:14]} 26. cxd5 {[%emt 0:01:12]} Be7 {[%emt 0:01:10]} 27. Raf1 {[%emt 0:00:53]} Bxf6 {[%emt 0:04:09]} 28. gxf6 {[%emt 0:00:07]} Rxf6 {[%emt 0:00:18]} 29. Rxf6 {[%emt 0:00:11]} Re7 {[%emt 0:00:27]} 30. Qf5 {[%emt 0:00:25]} hxg6 {[%emt 0:00:35]} 31. Rf8+ {[%emt 0:00:10]} Kh7 {[%emt 0:00:15]} 32. Qh5+ {[%emt 0:00:15]} Qh6 {[%emt 0:00:57]} 33. Rh8+ {[%emt 0:00:17]} Kxh8 {[%emt 0:00:07]} 34. Qxh6+ {[%emt 0:00:06]} Kg8 {[%emt 0:00:13]} 35. Bxg6 {[%emt 0:00:13]} Re2+ {[%emt 0:00:09]} 36. Kf1 {[%emt 0:00:11]} Re7 {[%emt 0:00:06]} 37. Qg5 {[%emt 0:00:17]} Kf8 {[%emt 0:00:21]} 38. Qf6+ {[%emt 0:00:08]} Kg8 {[%emt 0:00:10]} 39. Qxe7 {[%emt 0:00:09]} b5 {[%emt 0:01:29]} 40. Qf7+ {[%emt 0:00:08]} Kh8 {[%emt 0:00:50]} 41. Qh7# {[%emt 0:00:13]} 1-0

[Event "FIDE WCCC Open-08 2024"]
[Site "Montesilvano"]
[Date "2024.11.18"]
[Round "3.13"]
[White "Morozevich, Kirill Aleks"]
[Black "Mudriievskyi, Jan"]
[Result "0-1"]
[ECO "D36"]
[WhiteElo "1484"]
[BlackElo "1682"]
[PlyCount "98"]
[EventDate "2024.11.18"]
[EventType "swiss"]
[EventCountry "ITA"]
[TimeControl "5400+30"]

1. d4 {[%emt 0:00:02]} d5 {[%emt 0:00:05]} 2. c4 {[%emt 0:00:04]} e6 {[%emt 0:00:06]} 3. Nc3 {[%emt 0:00:04]} Nf6 {[%emt 0:00:09]} 4. Bg5 {[%emt 0:00:04]} Nbd7 {[%emt 0:00:07]} 5. e3 {[%emt 0:00:09]} c6 {[%emt 0:00:10]} 6. cxd5 {[%emt 0:00:05]} exd5 {[%emt 0:00:11]} 7. Bd3 {[%emt 0:00:05]} Bd6 {[%emt 0:00:44]} 8. Nf3 {[%emt 0:00:08]} O-O {[%emt 0:00:17]} 9. O-O {[%emt 0:00:25]} h6 {[%emt 0:01:26]} 10. Bh4 {[%emt 0:00:06]} Re8 {[%emt 0:00:48]} 11. Qc2 {[%emt 0:00:47]} b6 {[%emt 0:01:50]} 12. e4 {[%emt 0:00:49]} dxe4 {[%emt 0:00:56]} 13. Nxe4 {[%emt 0:00:06]} Re6 {[%emt 0:09:09]} 14. Nxd6 {[%emt 0:01:16]} Rxd6 {[%emt 0:00:52]} 15. Bg3 {[%emt 0:00:10]} Re6 {[%emt 0:04:41]} 16. Bf5 {[%emt 0:00:23]} Re7 {[%emt 0:01:16]} 17. Qxc6 {[%emt 0:02:15]} Ba6 {[%emt 0:03:16]} 18. Rfe1 {[%emt 0:00:28]} Rc8 {[%emt 0:08:06]} 19. Qa4 {[%emt 0:01:43]} Bb7 {[%emt 0:08:02]} 20. Ne5 {[%emt 0:01:27]} Qe8 {[%emt 0:05:09]} 21. Qxa7 {[%emt 0:07:37]} Nxe5 {[%emt 0:04:06]} 22. Rxe5 {[%emt 0:00:29]} Rxe5 {[%emt 0:00:52]} 23. Bxe5 {[%emt 0:02:39]} Qc6 {[%emt 0:00:54]} 24. f3 {[%emt 0:01:01]} Ra8 {[%emt 0:00:53]} 25. Qxa8+ {[%emt 0:01:29]} Bxa8 {[%emt 0:02:46]} 26. Re1 {[%emt 0:00:20]} Bb7 {[%emt 0:01:24]} 27. Kh1 {[%emt 0:01:31]} g6 {[%emt 0:01:51]} 28. Bd3 {[%emt 0:00:38]} Nd5 {[%emt 0:02:59]} 29. h4 {[%emt 0:01:47]} Qc8 {[%emt 0:03:13]} 30. Bb5 {[%emt 0:01:10]} Qd8 {[%emt 0:03:09]} 31. g3 {[%emt 0:01:47]} f6 {[%emt 0:02:33]} 32. Bf4 {[%emt 0:01:45]} Nc7 {[%emt 0:01:01]} 33. Bc4+ {[%emt 0:00:27]} Kg7 {[%emt 0:00:26]} 34. Kg2 {[%emt 0:00:34]} g5 {[%emt 0:01:57]} 35. hxg5 {[%emt 0:00:18]} hxg5 {[%emt 0:00:25]} 36. Be3 {[%emt 0:00:06]} Nd5 {[%emt 0:01:35]} 37. Bf2 {[%emt 0:00:11]} g4 {[%emt 0:00:34]} 38. Re4 {[%emt 0:02:04]} gxf3+ {[%emt 0:01:08]} 39. Kg1 {[%emt 0:00:13]} Qh8 {[%emt 0:01:37]} 40. Rh4 {[%emt 0:00:13]} Qc8 {[%emt 0:01:09]} 41. b3 {[%emt 0:01:08]} b5 {[%emt 0:00:51]} 42. Bxb5 {[%emt 0:00:15]} Qc1+ {[%emt 0:00:51]} 43. Kh2 {[%emt 0:00:14]} Ne3 {[%emt 0:00:57]} 44. a4 {[%emt 0:03:53]} Nf1+ {[%emt 0:00:28]} 45. Kh3 {[%emt 0:00:31]} Bc8+ {[%emt 0:00:25]} 46. g4 {[%emt 0:00:19]} f5 {[%emt 0:00:25]} 47. Rh5 {[%emt 0:00:42]} fxg4+ {[%emt 0:00:30]} 48. Kh4 {[%emt 0:00:05]} Qf4 {[%emt 0:00:49]} 49. Rg5+ {[%emt 0:01:32]} Kf6 {[%emt 0:27:52]} 0-1

[Event "FIDE WCCC Open-08 2024"]
[Site "Montesilvano"]
[Date "2024.11.18"]
[Round "3.14"]
[White "Lan, Kai Zhou"]
[Black "Jia, Zining (Matthew)"]
[Result "0-1"]
[ECO "B56"]
[WhiteElo "1784"]
[BlackElo "1550"]
[PlyCount "50"]
[EventDate "2024.11.18"]
[EventType "swiss"]
[EventCountry "ITA"]
[TimeControl "5400+30"]

1. e4 {[%emt 0:00:02]} c5 {[%emt 0:00:05]} 2. Nf3 {[%emt 0:00:14]} d6 {[%emt 0:00:07]} 3. d4 {[%emt 0:00:12]} cxd4 {[%emt 0:00:06]} 4. Nxd4 {[%emt 0:00:26]} Nf6 {[%emt 0:00:07]} 5. Nc3 {[%emt 0:00:19]} e5 {[%emt 0:00:11]} 6. Nb3 {[%emt 0:11:17]} Be6 {[%emt 0:00:47]} 7. f3 {[%emt 0:02:12]} Be7 {[%emt 0:00:28]} 8. Be3 {[%emt 0:00:12]} d5 {[%emt 0:00:21]} 9. exd5 {[%emt 0:07:28]} Bxd5 {[%emt 0:02:31]} 10. Nxd5 {[%emt 0:04:18]} Nxd5 {[%emt 0:00:16]} 11. Bb5+ {[%emt 0:03:34]} Nc6 {[%emt 0:00:07]} 12. Bf2 {[%emt 0:00:53]} a6 {[%emt 0:04:03]} 13. Bd3 {[%emt 0:02:18]} Nf4 {[%emt 0:01:50]} 14. O-O {[%emt 0:00:24]} Nxd3 {[%emt 0:00:07]} 15. cxd3 {[%emt 0:03:19]} O-O {[%emt 0:05:13]} 16. d4 {[%emt 0:05:54]} exd4 {[%emt 0:00:24]} 17. Nxd4 {[%emt 0:00:12]} Nxd4 {[%emt 0:00:11]} 18. Bxd4 {[%emt 0:00:51]} Rc8 {[%emt 0:00:19]} 19. Rf2 {[%emt 0:02:48]} Qc7 {[%emt 0:00:19]} 20. Bc3 {[%emt 0:04:48]} Bc5 {[%emt 0:00:24]} 21. Bd4 {[%emt 0:03:57]} Rfd8 {[%emt 0:00:13]} 22. Rd2 {[%emt 0:02:19]} Bxd4+ {[%emt 0:00:57]} 23. Rxd4 {[%emt 0:00:09]} Qc5 {[%emt 0:00:06]} 24. Rc1 {[%emt 0:00:26]} Qxd4+ {[%emt 0:00:06]} 25. Qxd4 {[%emt 0:00:05]} Rxc1+ {[%emt 0:00:09]} 0-1

[Event "FIDE WCCC Open-08 2024"]
[Site "Montesilvano"]
[Date "2024.11.18"]
[Round "3.15"]
[White "Lau, Great Boyou"]
[Black "Kapitanski, Furion"]
[Result "0-1"]
[ECO "C45"]
[WhiteElo "1514"]
[BlackElo "1707"]
[PlyCount "182"]
[EventDate "2024.11.18"]
[EventType "swiss"]
[EventCountry "ITA"]
[TimeControl "5400+30"]

1. e4 {[%emt 0:00:02]} e5 {[%emt 0:00:04]} 2. Nf3 {[%emt 0:00:04]} Nc6 {[%emt 0:00:05]} 3. d4 {[%emt 0:00:07]} exd4 {[%emt 0:00:07]} 4. Nxd4 {[%emt 0:00:10]} Bc5 {[%emt 0:00:06]} 5. Nxc6 {[%emt 0:00:17]} Qf6 {[%emt 0:00:07]} 6. Qf3 {[%emt 0:00:04]} dxc6 {[%emt 0:03:08]} 7. Bc4 {[%emt 0:00:43]} Qxf3 {[%emt 0:00:33]} 8. gxf3 {[%emt 0:00:30]} Bh3 9. Rg1 {[%emt 0:00:15]} g6 {[%emt 0:06:04]} 10. Rg3 {[%emt 0:01:21]} Be6 {[%emt 0:00:16]} 11. Bxe6 {[%emt 0:00:23]} fxe6 {[%emt 0:00:10]} 12. Bd2 {[%emt 0:00:19]} Nf6 {[%emt 0:01:23]} 13. Bc3 {[%emt 0:02:09]} Rf8 {[%emt 0:00:33]} 14. Rg5 {[%emt 0:01:44]} Bxf2+ {[%emt 0:01:34]} 15. Ke2 {[%emt 0:00:52]} Bb6 {[%emt 0:01:56]} 16. Re5 {[%emt 0:00:50]} Kf7 {[%emt 0:03:12]} 17. Rg5 {[%emt 0:02:29]} Rad8 {[%emt 0:02:22]} 18. Bb4 {[%emt 0:03:24]} h6 {[%emt 0:04:05]} 19. Rg2 {[%emt 0:02:13]} Rfe8 {[%emt 0:00:50]} 20. Nd2 {[%emt 0:03:21]} Nh5 {[%emt 0:02:17]} 21. Rg4 {[%emt 0:00:19]} g5 {[%emt 0:04:44]} 22. Nc4 {[%emt 0:06:37]} Nf4+ {[%emt 0:00:56]} 23. Kf1 {[%emt 0:03:43]} e5 {[%emt 0:03:39]} 24. a4 {[%emt 0:01:40]} a6 {[%emt 0:02:25]} 25. h4 {[%emt 0:04:52]} Kf6 {[%emt 0:07:42]} 26. Bc3 {[%emt 0:10:21]} Bd4 {[%emt 0:01:55]} 27. Bxd4 {[%emt 0:01:09]} Rxd4 {[%emt 0:00:33]} 28. Ne3 {[%emt 0:01:53]} Rd2 {[%emt 0:00:54]} 29. Rd1 {[%emt 0:01:29]} Red8 {[%emt 0:01:41]} 30. Ke1 {[%emt 0:03:49]} Re2+ {[%emt 0:03:38]} 31. Kf1 {[%emt 0:00:24]} Rxd1+ {[%emt 0:00:12]} 32. Nxd1 {[%emt 0:00:08]} Rxc2 {[%emt 0:00:22]} 33. hxg5+ {[%emt 0:00:42]} hxg5 {[%emt 0:00:18]} 34. Rg1 {[%emt 0:01:44]} Nd3 {[%emt 0:01:45]} 35. Rg2 {[%emt 0:03:58]} Rc1 {[%emt 0:00:14]} 36. Rd2 {[%emt 0:00:56]} Nxb2 {[%emt 0:00:17]} 37. Rxb2 {[%emt 0:00:11]} Rxd1+ {[%emt 0:00:14]} 38. Ke2 {[%emt 0:00:07]} Ra1 {[%emt 0:00:18]} 39. Rxb7 {[%emt 0:00:31]} Rxa4 {[%emt 0:01:06]} 40. Rxc7 {[%emt 0:00:11]} Rc4 {[%emt 0:01:09]} 41. Ra7 {[%emt 0:00:07]} g4 {[%emt 0:01:02]} 42. fxg4 {[%emt 0:01:20]} Rxe4+ {[%emt 0:00:08]} 43. Kd3 {[%emt 0:00:29]} Rxg4 {[%emt 0:00:45]} 44. Rxa6 {[%emt 0:00:14]} Rd4+ {[%emt 0:00:07]} 45. Ke3 {[%emt 0:00:15]} Rd6 {[%emt 0:00:08]} 46. Ke4 {[%emt 0:00:16]} Ke6 {[%emt 0:00:20]} 47. Ra4 {[%emt 0:00:48]} c5 {[%emt 0:01:04]} 48. Ra5 {[%emt 0:00:28]} Rd4+ {[%emt 0:00:01]} 49. Ke3 {[%emt 0:00:07]} Kd5 {[%emt 0:00:06]} 50. Ra8 {[%emt 0:00:16]} Kc4 {[%emt 0:48:55]} 51. Ra5 {[%emt 0:00:32]} Kb4 {[%emt 0:00:00]} 52. Ra6 {[%emt 0:00:08]} c4 {[%emt 0:00:00]} 53. Rb6+ {[%emt 0:00:04]} Kc3 {[%emt 0:00:00]} 54. Rb5 {[%emt 0:00:23]} Rd3+ {[%emt 0:00:00]} 55. Ke2 {[%emt 0:00:10]} e4 {[%emt 0:00:00]} 56. Rb8 {[%emt 0:00:47]} Kc2 {[%emt 0:00:00]} 57. Rc8 {[%emt 0:00:17]} c3 {[%emt 0:00:00]} 58. Rc7 {[%emt 0:00:20]} Kc1 {[%emt 0:00:00]} 59. Rc8 {[%emt 0:00:55]} c2 {[%emt 0:00:00]} 60. Rb8 {[%emt 0:03:08]} Rd5 {[%emt 0:00:00]} 61. Rb7 {[%emt 0:00:48]} e3 {[%emt 0:00:00]} 62. Rb8 {[%emt 0:00:12]} Rd2+ {[%emt 0:00:00]} 63. Ke1 {[%emt 0:00:13]} e2 {[%emt 0:00:00]} 64. Rb7 {[%emt 0:00:29]} Rd1+ {[%emt 0:00:00]} 65. Kxe2 {[%emt 0:00:06]} Rd5 {[%emt 0:00:00]} 66. Rc7 {[%emt 0:00:22]} Rb5 {[%emt 0:00:00]} 67. Kd3 {[%emt 0:00:30]} Rb3+ {[%emt 0:00:00]} 68. Ke2 {[%emt 0:02:08]} Kb1 {[%emt 0:00:00]} 69. Kd2 {[%emt 0:00:26]} Rb5 {[%emt 0:00:00]} 70. Kd3 {[%emt 0:01:51]} c1=Q {[%emt 0:10:00]} 71. Rxc1+ {[%emt 0:00:04]} Kxc1 {[%emt 0:00:00]} 72. Ke4 {[%emt 0:00:09]} Kc2 {[%emt 0:00:00]} 73. Kd4 {[%emt 0:00:03]} Kb3 {[%emt 0:00:00]} 74. Kd3 {[%emt 0:00:15]} Rd5+ {[%emt 0:00:00]} 75. Ke4 {[%emt 0:00:08]} Kc4 {[%emt 0:00:00]} 76. Kf4 {[%emt 0:00:19]} Kd4 {[%emt 0:00:00]} 77. Kf3 {[%emt 0:00:07]} Re5 {[%emt 0:00:00]} 78. Kf4 {[%emt 0:00:05]} Re8 {[%emt 0:00:00]} 79. Kf3 {[%emt 0:00:04]} Re7 {[%emt 0:00:00]} 80. Kf2 {[%emt 0:00:05]} Kd3 {[%emt 0:00:00]} 81. Kf1 {[%emt 0:00:05]} Kd2 {[%emt 0:05:30]} 82. Kf2 {[%emt 0:00:09]} Rf7+ {[%emt 0:00:30]} 83. Kg3 {[%emt 0:00:08]} Ke3 {[%emt 0:00:00]} 84. Kg4 {[%emt 0:00:16]} Rf1 {[%emt 0:00:00]} 85. Kg5 {[%emt 0:00:00]} Ke4 {[%emt 0:01:30]} 86. Kg6 Ke5 {[%emt 0:00:00]} 87. Kg7 {[%emt 0:47:53]} Ke6 {[%emt 0:00:00]} 88. Kg8 {[%emt 0:00:00]} Ke7 {[%emt 0:00:00]} 89. Kh7 {[%emt 0:00:00]} Kf6 {[%emt 0:00:00]} 90. Kg8 {[%emt 0:00:00]} Rh1 {[%emt 0:00:00]} 91. Kf8 {[%emt 0:00:00]} Rh8# {[%emt 0:00:00]} 0-1